Cogmind - Beta 16 @@@ ROGUE MODE // 2025.10.26 @ 02:46:40 Player: Mathewnd Result: Destroyed by H-61 Shepherd with Heavy Assault Cannon Performance ------------- Evolutions (4) 2000 Regions Visited (15) 3000 Robots Destroyed (281) 1405 Value Destroyed (9875) 9875 Prototype IDs (10) 200 Alien Tech Used (0) 0 Bonus (2140) 2140 TOTAL SCORE: 18620 Bonus ------- High Alert Combat Kills 303 Follower Combat Kills 1037 Registered with UFD 300 Met R17 at Cetus 500 Cogmind --------- Core Integrity 0/850 Matter 20/300 Energy 290/290 System Corruption 3% Temperature Cool (0) Movement Core (850) Ox16 Location -6/Hub_04(d) Parts ------- > --- POWER (2) -------- Improved Deuterium Engine > --- PROPULSION (4) --- (None) > --- UTILITY (6) ------ High-capacity Storage Unit IFF Parser Improved Hacking Suite > --- WEAPON (3) ------- (None) > --- INVENTORY (20) --- Centrium Heavy Treads Centrium Heavy Treads Centrium Heavy Treads Overtuned Huge Scrapsphere Mapping Drone Bay (3/3) Plasma Rifle Autogun Heavy Machine Gun Heavy Machine Gun KE Penetrator Advanced KE Penetrator Long-range Missile Launcher Long-range Missile Launcher Hammer Peak State ------------ > --- POWER ------------ Fission Core Quantum Reactor > --- PROPULSION ------- Centrium Heavy Treads Overtuned Huge Scrapsphere > --- UTILITY ---------- Scrap Suit Improved Heat Sink Advanced Heat Sink High-capacity Storage Unit Improved Signal Interpreter > --- WEAPON ----------- Heavy Beamcaster Advanced KE Penetrator Advanced KE Penetrator > --- INVENTORY -------- Improved Deuterium Engine Centrium Heavy Treads Centrium Heavy Treads Centrium Heavy Treads Overtuned Huge Scrapsphere Improved Sensor Array Improved Salvage Targeting Computer Matter Filter Heavy Armor Plating Mapping Drone Bay Plasma Rifle Heavy Assault Rifle Autogun Advanced KE Penetrator Hammer [Rating: 97] Favorites ----------- Power Light Nuclear Core Engine Improved Deuterium Engine Power Core Light Nuclear Core Reactor Quantum Reactor Propulsion Armored Treads Treads Armored Treads Wheel Overtuned Huge Scrapsphere Utility Huge Storage Unit Device Scrap Suit Storage Huge Storage Unit Processor Target Analyzer Hackware Improved Hacking Suite Protection Reflective Plating Weapon Improved Assault Rifle Energy Gun Heavy Beamcaster Ballistic Gun Improved Assault Rifle Launcher Rocket Launcher Impact Weapon Hammer Special Melee Weapon Datajack Build | -11 -10 -10 -9 -9 -9 -8 -8 -8 -8 -8 -6 -6 -6 -6 -6 ------- Run | Yrd Mat Min Mat Min Exi Min Mat Sto Rec Scr Fac Ext Cet Arc Hub Slots Evolved 8 | . . . 2 . . . 2 . . . 4 . . . . Power 1 | . . . . . . . . . . . 1 . . . . Propulsion 2 | . . . 1 . . . 1 . . . . . . . . Utility 4 | . . . . . . . 1 . . . 3 . . . . Weapon 1 | . . . 1 . . . . . . . . . . . . Parts Attached 118 | 6 3 5 17 4 . 6 10 10 . 6 11 23 6 5 6 Power 17 | 1 1 . 1 1 . . 1 2 . 1 1 6 1 . 1 Engine 7 | 1 1 . . . . . . . . . . 4 . . 1 Core 8 | . . . 1 1 . . 1 2 . 1 1 1 . . . Reactor 2 | . . . . . . . . . . . . 1 1 . . Propulsion 29 | 2 . 2 8 . . 3 4 1 . 2 1 5 1 . . Treads 25 | 2 . 2 8 . . 3 3 1 . . 1 4 1 . . Leg . | . . . . . . . . . . . . . . . . Wheel 4 | . . . . . . . 1 . . 2 . 1 . . . Hover . | . . . . . . . . . . . . . . . . Flight . | . . . . . . . . . . . . . . . . Utility 28 | 1 2 1 1 . . . 2 2 . 2 5 4 . 4 4 Device 14 | . . . . . . . . 2 . 1 4 3 . 2 2 Storage 5 | 1 1 . 1 . . . . . . 1 . 1 . . . Processor 3 | . . 1 . . . . . . . . 1 . . 1 . Hackware 1 | . . . . . . . . . . . . . . . 1 Protection 5 | . 1 . . . . . 2 . . . . . . 1 1 Artifact . | . . . . . . . . . . . . . . . . Weapon 44 | 2 . 2 7 3 . 3 3 5 . 1 4 8 4 1 1 Energy Gun 8 | . . . . . . . . . . . . 7 1 . . Energy Cannon . | . . . . . . . . . . . . . . . . Ballistic Gun 33 | 2 . 2 6 2 . 3 3 4 . 1 4 1 3 1 1 Ballistic Cannon . | . . . . . . . . . . . . . . . . Launcher 1 | . . . . 1 . . . . . . . . . . . Special Weapon . | . . . . . . . . . . . . . . . . Impact Weapon 1 | . . . . . . . . 1 . . . . . . . Slashing Weapon . | . . . . . . . . . . . . . . . . Piercing Weapon . | . . . . . . . . . . . . . . . . Special Melee Weapon 1 | . . . 1 . . . . . . . . . . . . Unidentified Prototypes 4 | . . . 1 . . . . 1 . . . . 2 . . Corrupted Parts 1 | . . . . . . . . . . . . . 1 . . System Corruption 6 | . . . . . . . . . . . . . 6 . . Parts Lost 65 | . . 5 . 3 . . 1 . . . . 38 3 1 14 Power 11 | . . . . 1 . . . . . . . 7 1 . 2 Propulsion 11 | . . 2 . . . . . . . . . 7 . . 2 Utility 17 | . . 1 . . . . . . . . . 8 . 1 7 Weapon 26 | . . 2 . 2 . . 1 . . . . 16 2 . 3 Highest Loss Streak 18 | . . 3 . 2 . . 1 . . . . 18 2 1 5 To Critical Strikes 1 | . . . . . . . . . . . . . 1 . . Average Backups 20 | 2 16 18 24 22 24 22 22 21 22 20 20 19 15 14 13 Power 1 | . 1 1 1 1 1 1 1 1 1 . . 1 1 1 . Propulsion 6 | 2 5 6 7 8 8 8 8 7 6 5 4 4 4 4 4 Utility 7 | . 3 4 8 8 8 8 8 9 10 10 10 8 5 3 1 Weapon 5 | . 6 6 6 5 7 5 4 3 4 4 5 5 5 6 7 Tool/Special . | . . . . . . . . . . . . . . . . Unused Backups 50 | . 6 1 8 . . . 4 3 . 6 2 2 6 1 11 Power 1 | . . . 1 . . . . . . . . . . . . Propulsion 20 | . 3 . 1 . . . 3 2 . 3 1 . 4 . 3 Utility 10 | . 2 . 2 . . . 1 . . 3 . 1 . . 1 Weapon 19 | . 1 1 4 . . . . 1 . . 1 1 2 1 7 Tool/Special . | . . . . . . . . . . . . . . . . Average Slot Usage (%) 89 | . 91 99 99 99 73 99 97 89 90 82 85 81 79 79 69 Engine 2 | . 14 14 . . . . . . . . . 4 . . 4 Core 6 | . . . 10 10 11 11 9 9 9 7 13 4 6 6 1 Treads 22 | . 28 27 32 33 33 33 32 17 18 16 12 12 6 6 5 Wheel 3 | . . . . . . . 1 8 9 8 6 6 6 6 6 Device 5 | . . . . . . . . 6 9 8 12 14 20 12 11 Storage 9 | . 14 14 11 11 11 11 9 9 9 8 6 5 6 6 6 Processor 7 | . . 2 11 11 11 11 9 9 9 9 12 9 6 6 2 Protection 2 | . 5 10 . . . . 8 1 . . . . . 5 . Energy Gun 1 | . . . . . . . . . . . . 5 14 . . Ballistic Gun 24 | . 28 27 32 32 6 32 27 26 27 24 20 12 5 19 19 Peak Build Rating 97 | 6 9 10 27 27 27 27 38 41 37 44 67 73 97 97 96 Average Rating 40 | 4 7 9 24 26 20 26 32 36 37 36 61 63 86 95 83 On Entrance 37 | . 6 9 10 27 27 19 27 38 37 37 44 66 67 97 96 Avg Prop Armor Cover (%) 13 | . . . . . . . 15 16 17 16 14 13 8 2 10 Naked Turns . | . . . . . . . . . . . . . . . . Heaviest Build 121 | 14 54 50 94 95 94 94 100 100 96 96 116 121 93 106 106 Greatest Support 80 | 40 40 40 60 60 60 60 80 28 28 40 20 40 80 80 80 Greatest Overweight (x) 16 | . 1 1 2 1 1 1 3 3 3 4 5 6 4 5 16 Average Overweight (x) 2 | . . 1 . 1 1 1 1 3 3 2 5 4 2 1 2 Largest Inventory Capacity 25 | 8 20 20 25 25 25 25 25 25 25 25 25 25 20 20 20 Average Capacity 23 | 6 19 20 24 25 25 25 25 25 25 23 25 23 20 20 20 Most Carried 25 | 6 20 20 25 25 25 24 25 25 25 25 25 25 20 20 18 Average Carried 21 | 3 16 18 24 22 24 22 24 24 24 22 23 21 19 19 17 Final Capacity 25 | 8 20 20 25 25 25 25 25 25 25 25 25 20 20 20 20 Final Carried 25 | 6 20 15 25 22 25 22 25 25 25 25 25 20 20 18 18 Scrap Suit Usage (%) 3 | . . . . . . . . . . . 27 19 . . . Parts Cannibalized 18 | . . . . . . . . . . . 1 17 . . . Class Distribution -------------------- 46% | Gunner 16% | Mutant 13% | Commander-Gunner 11% | Scavenger-Tank 4% | Commander-Skirmisher Dominant Class ---------------- Mutant | -10/Materials Mutant | -10/Mines Gunner | -9/Materials Gunner | -9/Mines Mutant | -9/Exiles Gunner | -8/Mines Gunner | -8/Materials Gunner | -8/Storage Commander-Gunner | -8/Recycling Commander-Gunner | -8/Scraptown Commander-Skirmisher | -6/Factory Commander-Gunner | -6/Extension Scavenger-Tank | -6/Cetus Scavenger-Tank | -6/Archives Scavenger-Tank | -6/Hub_04(d) Resources | -11 -10 -10 -9 -9 -9 -8 -8 -8 -8 -8 -6 -6 -6 -6 -6 ----------- Run | Yrd Mat Min Mat Min Exi Min Mat Sto Rec Scr Fac Ext Cet Arc Hub Matter Collected 7943 | 207 681 259 797 346 . 302 1045 1049 172 180 588 1585 93 275 364 Remotely . | . . . . . . . . . . . . . . . . Salvage Created 11993 | . 821 319 1314 167 . 364 1911 1631 284 . 365 2930 193 556 1138 Parts 597 | . 54 15 83 10 . 14 107 75 10 . 17 116 5 29 62 Haulers Intercepted 15 | . 1 . 6 . . . 4 3 . . . . . . 1 Recyclers Shooed 6 | . 1 . 3 . . . 1 . . . . 1 . . . Parts Field Recycled . | . . . . . . . . . . . . . . . . Retrieved Matter . | . . . . . . . . . . . . . . . . Parts Self-Destructed . | . . . . . . . . . . . . . . . . Prevented . | . . . . . . . . . . . . . . . . Parts Restored . | . . . . . . . . . . . . . . . . Kills | -11 -10 -10 -9 -9 -9 -8 -8 -8 -8 -8 -6 -6 -6 -6 -6 ------- Run | Yrd Mat Min Mat Min Exi Min Mat Sto Rec Scr Fac Ext Cet Arc Hub Combat Hostiles Destroyed 217 | . 17 9 21 16 . 9 31 32 8 . 7 43 3 3 18 Guns 207 | . 17 9 21 11 . 9 31 32 8 . 7 39 2 3 18 AOE 7 | . . . . 5 . . . . . . . 2 . . . Classes Destroyed 17 | . 7 . 2 2 . 1 2 . 2 . . 1 . . . Worker 7 | . . . . . . . 4 . . . . 2 . . 1 Builder 7 | . . . 1 . . . 1 1 . . . 2 . . 2 Tunneler 2 | . 1 1 . . . . . . . . . . . . . Hauler 15 | . 1 . 6 . . . 4 3 . . . . . . 1 Recycler 14 | . 2 . 2 . . . 5 1 . . . 4 . . . Operator 18 | . 2 . 2 . . . 1 1 . . . 2 . 9 1 Watcher 13 | . 3 . 1 . . . 3 1 . . . 2 . . 3 Swarmer 47 | . 8 3 6 5 . 3 8 4 . . 2 8 . . . Grunt 90 | . 9 6 8 . . 5 15 24 . . 2 18 . . 3 Brawler 2 | . . . . . . . . . 2 . . . . . . Duelist 2 | . . . . . . 1 . . . . . 1 . . . Sentry 41 | . . . 7 . . . 7 4 2 . 2 12 . 3 4 Demolisher 5 | . . . . 2 . . . . 1 . . . . . 2 Hunter 5 | . . . . . . . 1 . . . 2 2 . . . Programmer 7 | . . . . . . . . . 3 . . . . . 4 Behemoth 2 | . . . . . . . . . . . . 1 . . 1 Cetus Guard 3 | . . . . . . . . . . . . . 3 . . Assembled 13 | . . . . 9 . . . . . . . . . . 4 Butcher 1 | . . . . . . . . . . . . 1 . . . Best Kill Streak 9 | . 4 4 4 9 . 4 8 4 4 . 4 4 2 4 7 Combat Bots Only 9 | . 3 4 4 9 . 4 4 4 4 . 4 4 2 1 6 Max Kills in Single Turn 2 | . 1 1 2 2 . 1 2 2 2 . 1 2 1 1 2 Gunslinging 1 | . . . 1 . . . 1 1 1 . . . . . 1 Exploded 1 | . . . . 1 . . . . . . . 1 . . . Melee . | . . . . . . . . . . . . . . . . Uniques/NPCs Destroyed . | . . . . . . . . . . . . . . . . Combat | -11 -10 -10 -9 -9 -9 -8 -8 -8 -8 -8 -6 -6 -6 -6 -6 -------- Run | Yrd Mat Min Mat Min Exi Min Mat Sto Rec Scr Fac Ext Cet Arc Hub Hostile Shots Fired 1541 | . 72 75 107 46 . 41 91 111 27 . 68 678 22 5 198 Missed 479 | . 29 19 34 12 . 4 29 29 3 . 31 225 5 1 58 Hits 1062 | . 43 56 73 34 . 37 62 82 24 . 37 453 17 4 140 Melee 21 | . . . . 3 . 4 . . . . . 4 . . 10 Projectile 1041 | . 43 56 73 31 . 33 62 82 24 . 37 449 17 4 130 AOE 25 | . . . . 5 . . . . 3 . . . . . 17 Critical Strikes 27 | . . . 1 . . 1 3 4 3 . . 7 3 . 5 Part Disruptions 2 | . . . 2 . . . . . . . . . . . . Damage Taken 13630 | . 444 597 937 641 . 645 785 878 378 . 371 4794 386 90 2684 Core 1366 | . 99 110 73 49 . 102 25 34 10 . 18 549 . 19 278 Absorbed by Shields 1437 | . . . . . . . . 299 79 . 106 833 120 . . Reduced by Siege Mode 151 | . . . . . . . . . . . . . . . 151 Ignored by Resistances 78 | . . . . . . . 66 12 . . . . . . . Regen/Repaired (Parts) 1588 | . 28 . 257 . . . 390 521 . . 224 168 . . . Core Remaining (%) 61 | 100 . 16 . . . 44 . . . 87 . . . . . Volleys Fired 687 | . 65 33 74 27 . 20 89 88 14 . 20 155 12 30 60 Largest 3 | . 2 2 3 3 . 3 3 3 3 . 3 3 3 3 3 Hottest 237 | . 40 40 69 69 . 69 75 75 69 . 90 219 237 151 103 Shots Fired 1879 | . 130 63 205 69 . 60 266 264 42 . 60 425 29 91 175 Gun 1868 | . 130 63 205 63 . 60 266 264 42 . 60 420 29 91 175 Cannon . | . . . . . . . . . . . . . . . . Launcher 11 | . . . . 6 . . . . . . . 5 . . . Special . | . . . . . . . . . . . . . . . . Kinetic 1734 | . 130 63 205 63 . 60 266 264 42 . 60 314 7 85 175 Thermal 134 | . . . . . . . . . . . . 106 22 6 . Explosive 11 | . . . . 6 . . . . . . . 5 . . . Electromagnetic . | . . . . . . . . . . . . . . . . Robot Hit Streak 29 | . 11 16 13 6 . 9 18 29 20 . 8 23 14 21 16 Robot Miss Streak 7 | . 6 2 4 7 . 3 7 6 2 . 3 7 2 3 2 Penetration Max 1 | . . . . . . . . . . . 1 1 . 1 1 Secondary Targets 33 | . 1 2 3 3 . 3 3 4 2 . 1 6 . . 5 Max Gunslinging Chain 1 | . 1 1 1 1 . 1 1 1 1 . 1 1 . . 1 Shots Hit Robots 1252 | . 71 47 138 42 . 42 171 174 30 . 38 293 25 55 126 Core Hits 579 | . 39 16 60 28 . 18 85 83 14 . 19 143 7 26 41 Critical Kills 35 | . . . 5 . . 1 6 4 . . 2 5 1 2 9 Critical Parts Destroyed 64 | . 1 1 6 2 . 3 6 8 5 . 1 8 1 8 14 Critical Strikes 108 | . 1 1 11 2 . 4 12 13 5 . 3 18 3 11 24 Burn 6 | . . . . . . . . . . . . 5 1 . . Destroy 102 | . 1 1 11 2 . 4 12 13 5 . 3 13 2 11 24 Melee Attacks 17 | . . . . . . . . 4 . . 1 . . . 12 Impact 17 | . . . . . . . . 4 . . 1 . . . 12 Slashing . | . . . . . . . . . . . . . . . . Piercing . | . . . . . . . . . . . . . . . . Sneak Attacks . | . . . . . . . . . . . . . . . . Combat Hostiles . | . . . . . . . . . . . . . . . . Follow-up Attacks . | . . . . . . . . . . . . . . . . Damage Inflicted 24951 | . 942 551 2002 834 . 662 2872 2955 545 . 794 6970 570 1660 3594 Guns 24076 | . 931 545 1984 549 . 662 2786 2944 545 . 794 6532 570 1640 3594 Cannons . | . . . . . . . . . . . . . . . . Explosions 688 | . . . . 285 . . . . . . . 403 . . . Melee . | . . . . . . . . . . . . . . . . Ramming 187 | . 11 6 18 . . . 86 11 . . . 35 . 20 . Kinetic 21926 | . 931 545 1984 549 . 662 2786 2944 545 . 794 4948 141 1503 3594 Thermal 2150 | . . . . . . . . . . . . 1584 429 137 . Explosive 688 | . . . . 285 . . . . . . . 403 . . . Electromagnetic . | . . . . . . . . . . . . . . . . Impact . | . . . . . . . . . . . . . . . . Slashing . | . . . . . . . . . . . . . . . . Piercing . | . . . . . . . . . . . . . . . . Highest Corruption 6 | . . . . 4 4 4 . . 3 . . . 6 6 3 Average Corruption 3 | . . . . 4 4 4 . . 2 . . . 6 5 2 Corruption Purged 6 | . . . . . . . . . . . . . . 6 . Corruption Blocked . | . . . . . . . . . . . . . . . . Effects 77 | . . . . 9 12 17 . . 19 . . . 2 15 3 Message Errors 20 | . . . . 3 3 6 . . 5 . . . . 3 . Matter Fused 18 | . . . . 1 5 3 . . 6 . . . . 3 . Heat Flow Errors 13 | . . . . 2 . 3 . . 4 . . . 1 3 . Energy Discharges 6 | . . . . 2 . 1 . . 1 . . . . . 2 Data Loss (minor) 9 | . . . . 1 2 3 . . . . . . 1 2 . Data Loss (major) 3 | . . . . . . 1 . . 1 . . . . 1 . Misfires 1 | . . . . . . . . . . . . . . 1 . Alerts 6 | . . . . . 2 . . . 2 . . . . 2 . Weapon Failures 1 | . . . . . . . . . . . . . . . 1 Overload Shots . | . . . . . . . . . . . . . . . . Overflow Damage 24 | . . . . 20 . . 4 . . . . . . . . Projectiles . | . . . . . . . . . . . . . . . . Explosions 20 | . . . . 20 . . . . . . . . . . . Melee 4 | . . . . . . . 4 . . . . . . . . Knockbacks 2 | . . . . . . . 1 1 . . . . . . . Impact 2 | . . . . . . . 1 1 . . . . . . . Kinetic . | . . . . . . . . . . . . . . . . Secondary . | . . . . . . . . . . . . . . . . Self-Inflicted Damage 132 | . . . . 116 . . . 3 . . . 13 . . . Shots 4 | . . . . 3 . . . . . . . 1 . . . Rammed 19 | . 3 1 2 . . . 6 2 . . . 2 . 3 . Targets Rammed 25 | . 3 1 2 . . . 9 2 . . . 4 . 4 . Kicked . | . . . . . . . . . . . . . . . . Crushed 6 | . . . . . . . 3 . . . . 2 . 1 . Highest Temperature 509 | . 2 41 36 206 . 204 99 132 264 . 133 378 209 509 462 Average Temperature 60 | . 2 14 8 31 . 75 26 20 67 . 42 87 60 146 115 Received Heat Transfer 3568 | . 120 252 279 60 . 252 333 476 21 . 44 1496 22 9 204 Effects 18 | . . . . . . . . . . . . 5 . 6 7 Shutdowns 7 | . . . . . . . . . . . . 2 . 2 3 Energy Bleed 4 | . . . . . . . . . . . . 1 . 3 . Interference 3 | . . . . . . . . . . . . . . . 3 Matter Decay 1 | . . . . . . . . . . . . 1 . . . Short Circuit 1 | . . . . . . . . . . . . . . 1 . Damage (minor) 2 | . . . . . . . . . . . . 1 . . 1 Siege Activations 15 | . . . . . . . . . . . . . 2 4 9 Total Turns 616 | . . . . . . . . . . . . . 9 280 327 Longest Duration 116 | . . . . . . . . . . . . . 8 116 106 Martial Activations . | . . . . . . . . . . . . . . . . Shielding Activations . | . . . . . . . . . . . . . . . . Robots Disrupted . | . . . . . . . . . . . . . . . . Combat Hostiles . | . . . . . . . . . . . . . . . . Robots Corrupted 1 | . . . . . . . 1 . . . . . . . . Combat Hostiles . | . . . . . . . . . . . . . . . . Parts Fried 2 | . . . . . . . 2 . . . . . . . . Impact Corruptions 1 | . . . . . . . 1 . . . . . . . . Robots Melted 3 | . . . . . . . . . . . . 2 1 . . Combat Hostiles 3 | . . . . . . . . . . . . 2 1 . . Parts Melted 16 | . . . . . . . . . . . 4 9 3 . . Heat Transferred 4433 | . . . . . . . . . . . . 3408 803 222 . Parts Sabotaged . | . . . . . . . . . . . . . . . . Parts Stolen . | . . . . . . . . . . . . . . . . Parts Stripped . | . . . . . . . . . . . . . . . . Power Chain Reactions . | . . . . . . . . . . . . . . . . Alert | -11 -10 -10 -9 -9 -9 -8 -8 -8 -8 -8 -6 -6 -6 -6 -6 ------- Run | Yrd Mat Min Mat Min Exi Min Mat Sto Rec Scr Fac Ext Cet Arc Hub Maximum Alert Level 3 | . 1 . 1 1 . . 1 2 1 . 2 3 2 1 . Low Security (%) 56 | 100 80 100 48 98 . 100 48 13 10 . 15 49 . 99 100 Level 1 33 | . 19 . 51 1 . . 51 52 89 . 59 18 61 . . Level 2 9 | . . . . . . . . 33 . . 25 32 38 . . Level 3 . | . . . . . . . . . . . . . . . . Level 4 . | . . . . . . . . . . . . . . . . Level 5 . | . . . . . . . . . . . . . . . . High Security . | . . . . . . . . . . . . . . . . Max Security . | . . . . . . . . . . . . . . . . Peak Influence 700 | . 245 151 398 205 . 154 361 627 369 . 526 700 474 203 152 Initial 390 | . . 66 . 145 . . 44 152 238 . . 242 390 140 . Average 184 | . 84 33 184 113 . 30 198 369 265 . 306 276 397 46 33 Influence Increases 8156 | . 591 220 764 189 . 240 1024 993 421 . 1048 1590 300 202 574 Destroy 0b10 Robot/C 4540 | . 340 180 420 140 . 180 620 640 240 . 320 940 160 80 280 Destroy 0b10 Robot/NC 425 | . 45 5 60 . . . 90 35 15 . 5 75 10 45 40 Destroy Leader 908 | . 78 20 144 20 . 30 174 138 . . 90 96 . . 118 Allied During Kill 403 | . . . . . . . . . 26 . 152 120 98 7 . Successful Hack 229 | . 6 . 33 . . . 56 21 28 . 51 6 . . 28 Select Force Hacks 330 | . 60 . 60 . . . 60 60 90 . . . . . . Disable Machine 510 | . . 15 15 . . . . 60 . . 225 45 15 60 75 Anti-Garrison Action 150 | . . . . . . . . . . . 150 . . . . Destroy Structure 226 | . 2 . 2 29 . . 9 9 22 . 55 38 17 10 33 Lose Combat Pursuer 435 | . 60 . 30 . . 30 15 30 . . . 270 . . . Influence Decreases 8063 | . 419 392 389 554 10 126 778 742 867 165 552 1388 648 552 481 Entered New Map 1934 | . . 106 . 230 10 . 70 208 373 165 . 254 308 210 . Time Decay 5123 | . 419 249 389 294 . 126 698 534 474 . 374 694 230 292 350 Lost Part 564 | . . 37 . 30 . . 10 . . . . 316 30 10 131 Lost Ally 442 | . . . . . . . . . 20 . 178 124 80 40 . Squads Dispatched 36 | . 4 1 3 . . . 6 7 . . 6 3 . . 6 Investigation 19 | . 3 1 2 . . . 4 4 . . 2 2 . . 1 Extermination 4 | . . . . . . . . . . . 1 . . . 3 Reinforcement 11 | . 1 . 1 . . . 2 3 . . 1 1 . . 2 Assault 2 | . . . . . . . . . . . 2 . . . . Garrison . | . . . . . . . . . . . . . . . . Intercept . | . . . . . . . . . . . . . . . . Searches Triggered . | . . . . . . . . . . . . . . . . Construction Impeded 1 | . . . . . . . . . . . . 1 . . . Haulers Reinforced . | . . . . . . . . . . . . . . . . Active Scanning Responses . | . . . . . . . . . . . . . . . . Cargo Convoy Interrupts . | . . . . . . . . . . . . . . . . Stealth | -11 -10 -10 -9 -9 -9 -8 -8 -8 -8 -8 -6 -6 -6 -6 -6 --------- Run | Yrd Mat Min Mat Min Exi Min Mat Sto Rec Scr Fac Ext Cet Arc Hub Distress Signals 23 | . 4 . 3 . . . 4 2 . . 1 2 2 . 5 Communications Jammed . | . . . . . . . . . . . . . . . . Distress Signals . | . . . . . . . . . . . . . . . . Times Spotted 348 | . 32 9 39 19 . 11 44 41 12 . 17 68 9 19 28 Peak Tracking Total 8 | . 4 5 8 5 . 5 6 4 6 . 5 7 5 1 5 Tactical Retreats 22 | . 3 . 1 1 . 2 1 2 . . . 12 . . . Traps | -11 -10 -10 -9 -9 -9 -8 -8 -8 -8 -8 -6 -6 -6 -6 -6 ------- Run | Yrd Mat Min Mat Min Exi Min Mat Sto Rec Scr Fac Ext Cet Arc Hub Traps Triggered 8 | . 1 . . . . . 1 . . . 1 3 . . 2 Indirectly . | . . . . . . . . . . . . . . . . Trap Hack Attempts 3 | . . . 3 . . . . . . . . . . . . Triggered . | . . . . . . . . . . . . . . . . Disarmed . | . . . . . . . . . . . . . . . . Reprogrammed 2 | . . . 2 . . . . . . . . . . . . Reused . | . . . . . . . . . . . . . . . . Traps Extracted . | . . . . . . . . . . . . . . . . Installed 3 | . . . . 3 . . . . . . . . . . . Triggered . | . . . . . . . . . . . . . . . . Machines | -11 -10 -10 -9 -9 -9 -8 -8 -8 -8 -8 -6 -6 -6 -6 -6 ---------- Run | Yrd Mat Min Mat Min Exi Min Mat Sto Rec Scr Fac Ext Cet Arc Hub Machines Disabled 36 | . . 1 1 . . . . 4 . . 16 4 1 4 5 Max in Single Turn 4 | . . 1 1 . . . . 1 . . 4 1 . 1 1 Garrison Access 2 | . . . . . . . 1 . . . 1 . . . . Machines Repaired . | . . . . . . . . . . . . . . . . Machines Dismantled . | . . . . . . . . . . . . . . . . Machines Sabotaged . | . . . . . . . . . . . . . . . . Overloaded Fab Kills . | . . . . . . . . . . . . . . . . Hacking | -11 -10 -10 -9 -9 -9 -8 -8 -8 -8 -8 -6 -6 -6 -6 -6 --------- Run | Yrd Mat Min Mat Min Exi Min Mat Sto Rec Scr Fac Ext Cet Arc Hub Machines Accessed 86 | . 10 1 14 . . . 15 12 8 3 9 10 . . 4 Terminals 57 | . 7 . 10 . . . 11 7 5 . 4 10 . . 3 Fabricators . | . . . . . . . . . . . . . . . . Repair Stations 7 | . 1 . 2 . . . 1 2 . . 1 . . . . Recycling Units 13 | . 2 . 2 . . . 2 2 3 . 2 . . . . Scanalyzers 2 | . . . . . . . . . . . 2 . . . . Garrison Access 3 | . . . . . . . 1 1 . . . . . . 1 Total Hacks 248 | . 24 1 46 . . . 44 35 19 29 17 22 . . 11 Successful 148 | . 11 1 28 . . . 26 22 12 29 11 5 . . 3 Failed 99 | . 13 . 17 . . . 18 13 7 . 6 17 . . 8 Catastrophic 19 | . . . 2 . . . 2 3 2 . 1 6 . . 3 Database Lockouts 1 | . . . 1 . . . . . . . . . . . . Manual 159 | . 26 . 39 . . . 37 11 19 . 7 15 1 . 4 Terminals 160 | . 20 . 38 . . . 31 17 16 . 7 22 . . 9 Fabricators . | . . . . . . . . . . . . . . . . Repair Stations 26 | . 1 . 6 . . . 3 13 . . 3 . . . . Recycling Units 19 | . 3 . 2 . . . 6 2 3 . 3 . . . . Scanalyzers 4 | . . . . . . . . . . . 4 . . . . Garrison Access 9 | . . . . . . . 4 3 . . . . . . 2 Terminal Hacks 50 | . 1 1 4 . . . 3 4 1 29 2 2 . . 3 Record 28 | . . . . . . . . . . 28 . . . . . Part Schematic 2 | . . . 1 . . . . . 1 . . . . . . Robot Schematic 1 | . 1 . . . . . . . . . . . . . . Robot Analysis 1 | . . . . . . . . . . . . . . . 1 Open Door 8 | . . 1 . . . . . 4 . . 1 2 . . . Level Access Points 1 | . . . . . . . . . . . . . . . 1 Branch Access Points 1 | . . . 1 . . . . . . . . . . . . Emergency Access Points 1 | . . . 1 . . . . . . . . . . . . Terminal Index 3 | . . . 1 . . . 1 . . . 1 . . . . Locate Traps 1 | . . . . . . . . . . . . . . . 1 Registered Components 2 | . . . . . . . 2 . . . . . . . . Proto ID Catalog 1 | . . . . . . . . . . 1 . . . . . Fabricator Hacks . | . . . . . . . . . . . . . . . . Repair Station Hacks 22 | . . . 6 . . . 2 12 . . 2 . . . . Scan Component 11 | . . . 3 . . . 1 6 . . 1 . . . . Repair 11 | . . . 3 . . . 1 6 . . 1 . . . . Recycling Unit Hacks . | . . . . . . . . . . . . . . . . Scanalyzer 3 | . . . . . . . . . . . 3 . . . . Insert Component 2 | . . . . . . . . . . . 2 . . . . Analyze 1 | . . . . . . . . . . . 1 . . . . Garrison Access Hacks 1 | . . . . . . . 1 . . . . . . . . Seal Access 1 | . . . . . . . 1 . . . . . . . . Unauthorized Hacks 72 | . 10 . 18 . . . 20 6 11 . 4 3 . . . Terminals 56 | . 7 . 16 . . . 16 4 8 . 2 3 . . . Botnet 20 | . 2 . 6 . . . 5 1 3 . 1 2 . . . Skim 36 | . 5 . 10 . . . 11 3 5 . 1 1 . . . Fabricators . | . . . . . . . . . . . . . . . . Repair Stations 2 | . 1 . . . . . 1 . . . . . . . . Patch 2 | . 1 . . . . . 1 . . . . . . . . Recycling Units 14 | . 2 . 2 . . . 3 2 3 . 2 . . . . Mask 1 | . . . . . . . 1 . . . . . . . . Tunnel 11 | . 2 . 2 . . . 2 2 3 . . . . . . Fedlink 1 | . . . . . . . . . . . 1 . . . . Scrapoids 1 | . . . . . . . . . . . 1 . . . . Scanalyzers . | . . . . . . . . . . . . . . . . Garrison Access . | . . . . . . . . . . . . . . . . Data Cores Recovered 2 | . 1 . . . . . . . . . . 1 . . . Used 1 | . 1 . . . . . . . . . . . . . . Hacking Detections 61 | . 7 . 11 . . . 12 6 4 . 8 9 . . 4 Full Trace Events 6 | . . . . . . . . 3 . . . 2 . . 1 Feedback Events . | . . . . . . . . . . . . . . . . Feedback Blocked . | . . . . . . . . . . . . . . . . Robot Schematics Acquired 1 | . 1 . . . . . . . . . . . . . . Robots Built . | . . . . . . . . . . . . . . . . Authchips . | . . . . . . . . . . . . . . . . Time . | . . . . . . . . . . . . . . . . Total Robot Build Rating . | . . . . . . . . . . . . . . . . Part Schematics Acquired 3 | . . . 1 . . . . . 1 . 1 . . . . Parts Built . | . . . . . . . . . . . . . . . . Authchips . | . . . . . . . . . . . . . . . . Time . | . . . . . . . . . . . . . . . . Total Part Build Rating . | . . . . . . . . . . . . . . . . Part Studies Acquired . | . . . . . . . . . . . . . . . . Parts Repaired 11 | . . . 3 . . . 1 6 . . 1 . . . . Time 387 | . . . 108 . . . 38 222 . . 19 . . . . Parts Recycled . | . . . . . . . . . . . . . . . . Recycled Matter . | . . . . . . . . . . . . . . . . Retrieved Matter . | . . . . . . . . . . . . . . . . Retrieved Components . | . . . . . . . . . . . . . . . . Parts Scanalyzed 1 | . . . . . . . . . . . 1 . . . . Part Schematics Acquired 1 | . . . . . . . . . . . 1 . . . . Parts Damaged 1 | . . . . . . . . . . . 1 . . . . Bothacking | -11 -10 -10 -9 -9 -9 -8 -8 -8 -8 -8 -6 -6 -6 -6 -6 ------------ Run | Yrd Mat Min Mat Min Exi Min Mat Sto Rec Scr Fac Ext Cet Arc Hub Used RIF Installer . | . . . . . . . . . . . . . . . . Robots Hacked . | . . . . . . . . . . . . . . . . Non-combat . | . . . . . . . . . . . . . . . . Combat . | . . . . . . . . . . . . . . . . Robot Hacks Applied . | . . . . . . . . . . . . . . . . Relay Couplers Released 4 | . . . . . . . . . . . 4 . . . . Machine Destruction 4 | . . . . . . . . . . . 4 . . . . Fabnet Peak Effective % . | . . . . . . . . . . . . . . . . Robots Rewired 28 | . . . . . . . . . 10 . . 18 . . . Allies Hacked . | . . . . . . . . . . . . . . . . Hacks Repelled . | . . . . . . . . . . . . . . . . Allies | -11 -10 -10 -9 -9 -9 -8 -8 -8 -8 -8 -6 -6 -6 -6 -6 -------- Run | Yrd Mat Min Mat Min Exi Min Mat Sto Rec Scr Fac Ext Cet Arc Hub Total Allies 36 | . . . . . . . . . 10 . 5 21 . . . Largest Group 11 | . . . . . . . . . 9 9 11 11 10 2 . Highest-Rated Group 409 | . . . . . . . . . 137 137 252 409 409 70 . Highest-Rated Ally 159 | . . . . . . . . . 34 34 34 159 159 39 . Total Orders 5 | . . . . . . . . . . . . 5 . . . STAY 4 | . . . . . . . . . . . . 4 . . . FOLLOW 1 | . . . . . . . . . . . . 1 . . . Ally Attacks 167 | . . . . . . . . . 8 . 56 49 49 5 . Total Damage 4012 | . . . . . . . . . 386 . 1263 887 1369 107 . Kills 35 | . . . . . . . . . 6 . 10 8 10 1 . Allies Corrupted . | . . . . . . . . . . . . . . . . Allies Melted . | . . . . . . . . . . . . . . . . Intel | -11 -10 -10 -9 -9 -9 -8 -8 -8 -8 -8 -6 -6 -6 -6 -6 ------- Run | Yrd Mat Min Mat Min Exi Min Mat Sto Rec Scr Fac Ext Cet Arc Hub Active Infowar (turns) 1895 | . . . . . . . . . . . 706 249 . . 940 Sensors 1417 | . . . . . . . . . . . 706 249 . . 462 IFF 478 | . . . . . . . . . . . . . . . 478 Robot Analysis Total 1 | . . . . . . . . . . . . . . . 1 Derelict Logs Recovered 2 | . . 1 . 1 . . . . . . . . . . . Drone Launches . | . . . . . . . . . . . . . . . . Drone Recoveries . | . . . . . . . . . . . . . . . . Exploration | -11 -10 -10 -9 -9 -9 -8 -8 -8 -8 -8 -6 -6 -6 -6 -6 ------------- Run | Yrd Mat Min Mat Min Exi Min Mat Sto Rec Scr Fac Ext Cet Arc Hub Turns Passed 23661 | 94 2623 919 3695 654 373 735 3056 1511 1207 1528 1071 3114 499 1379 1203 Spaces Moved 9963 | 51 971 305 1327 228 152 256 1120 591 590 1058 765 1502 230 380 437 Core 149 | 1 . . . . . . . . . 147 . . . . 1 Treads 4955 | 50 971 305 1327 228 152 256 823 . . 64 . 144 112 354 169 Legs . | . . . . . . . . . . . . . . . . Wheels 4859 | . . . . . . . 297 591 590 847 765 1358 118 26 267 Hover . | . . . . . . . . . . . . . . . . Flight . | . . . . . . . . . . . . . . . . Fastest Speed 50 | 50 160 240 160 246 246 246 145 145 145 50 120 80 100 110 100 Average Speed 182 | 157 238 240 237 246 246 246 218 145 145 133 120 130 168 231 147 Slowest Speed 850 | 160 240 240 325 246 246 246 247 145 145 490 120 330 240 240 850 Overloaded Moves . | . . . . . . . . . . . . . . . . Propulsion Burnouts . | . . . . . . . . . . . . . . . . Robots Hopped . | . . . . . . . . . . . . . . . . Potential Cave-ins . | . . . . . . . . . . . . . . . . Cave-ins Triggered . | . . . . . . . . . . . . . . . . Exploration Rate (%) 66 | 5 97 57 95 49 54 64 83 74 98 73 19 98 58 97 47 Regions Visited 15 Branch Regions 11 Pre-discovered Areas 30 | . 4 1 7 1 . . 7 2 5 3 . . . . . Known Exits Taken 11 | . . . 1 . 1 1 1 1 1 1 1 1 1 1 . Unknown Exits Taken 4 | 1 1 1 . 1 . . . . . . . . . . . Scrap Searched 1 | . . . . . . . . . . 1 . . . . . Spaces Dug 5 | . . . . . . . . . . . . . . . 5 Terrain Destroyed 203 | . . . . 48 . . . . . . 50 55 . 13 37 Melee 4 | . . . . . . . . . . . . . . . 4 Projectile 57 | . . . . . . . . . . . . 11 . 13 33 AOE 141 | . . . . 48 . . . . . . 50 43 . . . Terrain Rammed . | . . . . . . . . . . . . . . . . Walls Destroyed . | . . . . . . . . . . . . . . . . Machines Disabled . | . . . . . . . . . . . . . . . . Actions | -11 -10 -10 -9 -9 -9 -8 -8 -8 -8 -8 -6 -6 -6 -6 -6 --------- Run | Yrd Mat Min Mat Min Exi Min Mat Sto Rec Scr Fac Ext Cet Arc Hub Total 13916 | 62 1149 432 1721 266 154 315 1529 1049 910 1196 866 2299 323 805 840 Wait 2495 | . 79 87 249 . . 33 262 324 214 33 49 419 58 380 308 Move 9948 | 50 970 304 1326 227 151 255 1119 590 589 1057 764 1501 229 379 437 Hop . | . . . . . . . . . . . . . . . . Pick Up 158 | 6 20 1 23 . . . 14 9 1 38 3 30 6 3 4 Fast Attach 40 | 6 2 . 3 . . . . 3 . 6 3 11 2 1 3 Attach 50 | . . 5 2 3 . 3 4 1 . 6 4 15 2 1 4 Detach 18 | . 1 . . . 3 . 1 . . 10 1 1 1 . . Swap 102 | . 1 . 17 6 . 4 13 16 . 1 16 16 3 5 4 Drop 127 | . 8 1 22 . . . 18 12 1 45 5 3 10 2 . Fire 687 | . 65 33 74 27 . 20 89 88 14 . 20 155 12 30 60 Melee 17 | . . . . . . . . 4 . . 1 . . . 12 Ram 1 | . . . . . . . . 1 . . . . . . . Kick . | . . . . . . . . . . . . . . . . Crush 24 | . 3 1 2 . . . 9 1 . . . 4 . 4 . Escape Stasis 16 | . . . . . . . . . . . . 8 . . 8 Rewire 227 | . . . . . . . . . 91 . . 136 . . . Trap 6 | . . . 3 3 . . . . . . . . . . . Miscellaneous . | . . . . . . . . . . . . . . . . Route ------- -11/Scrapyard -10/Materials (discovered 5 exits: *Mat x3 / *Min / [*Sub]) -10/Mines -9/Materials (discovered 4 exits: *Mat x3 / *Min) -9/Mines (discovered 3 exits: Mat x2 / [*Exi]) -9/Exiles (discovered 2 exits: *Min x2) -8/Mines -8/Materials (discovered 4 exits: *Fac x3 / *Sto) -8/Storage (discovered 2 exits: *Fac / *Rec) -8/Recycling (discovered 2 exits: *Fac / *Scr) -8/Scraptown (discovered 2 exits: *Fac x2) -6/Factory (discovered 8 exits: Fac x4 / *Low x2 / *Ext x2) -6/Extension (discovered 3 exits: *Fac x2 / *Cet) -6/Cetus (discovered 2 exits: *Fac / *Arc) -6/Archives (discovered 3 exits: *Fac / *Hub x2) -6/Hub_04(d) (discovered 4 exits: Fac x4) History --------- Turn | Location | Event 53 | -11/Scrapyard | Discovered new exit (range 16) 95 | -11/Scrapyard | Entered Materials 300 | -10/Materials | Build established: Mutant 409 | -10/Materials | Discovered new exit (range 10) 1075 | -10/Materials | Discovered new exit (range 16) 1283 | -10/Materials | Discovered new exit (range 3) 1538 | -10/Materials | Discovered new exit (range 9) 1728 | -10/Materials | Discovered new exit (range 4) 2159 | -10/Materials | Learned Storage emergency access door positions 2271 | -10/Materials | Learned Storage trap positions 2345 | -10/Materials | Loaded intel: 1 repair station location 2369 | -10/Materials | Loaded intel: 7 trap records 2403 | -10/Materials | Learned Materials trap positions 2497 | -10/Materials | Learned location of Mines (-9) 2718 | -10/Materials | Entered Mines 2722 | -10/Mines | Core integrity fell below 50% 2847 | -10/Mines | Learned 2 Materials zone layouts 2942 | -10/Mines | Met a Derelict shopkeep closing up shop 3230 | -10/Mines | Excavation squad dispatched 3230 | -10/Mines | A large section of the Mines collapsed 3369 | -10/Mines | Core integrity fell below 20% 3380 | -10/Mines | Lost 3 parts (1n2w) 3517 | -10/Mines | Discovered new exit (range 8) 3637 | -10/Mines | Entered Materials 3637 | -9/Materials | Evolved 2 slots: Propulsion x1, Weapon x1 3638 | -9/Materials | Identified exit to Mines 3640 | -9/Materials | Loaded intel: 15 trap records 3942 | -9/Materials | Build established: Gunner 4118 | -9/Materials | Discovered new exit (range 16) 4900 | -9/Materials | Learned 4 Recycling zone layouts 4957 | -9/Materials | Learned Materials trap positions 5004 | -9/Materials | Identified exit to Materials 5030 | -9/Materials | Repaired Arm. Treads 5039 | -9/Materials | Learned location of Zion (-6) 5064 | -9/Materials | Repaired Shotgun 6028 | -9/Materials | Central database locked down 6152 | -9/Materials | Repaired Arm. Treads 6753 | -9/Materials | Learned Materials trap positions 6824 | -9/Materials | Learned 2 Storage zone layouts 6941 | -9/Materials | Learned 2 Storage zone layouts 6985 | -9/Materials | Learned 2 Materials zone layouts 7017 | -9/Materials | Learned 2 Materials zone layouts 7072 | -9/Materials | Learned location of Recycling (-8) 7332 | -9/Materials | Entered Mines 7446 | -9/Mines | Found a Scrap Suit stashed away for nefarious purposes 7477 | -9/Mines | Assembled infested the area 7564 | -9/Mines | Destroyed 9 combat bots 7703 | -9/Mines | A weapon hastily lodged in a ceiling crevice suddenly fell to the ground 7932 | -9/Mines | Found a hidden stash of uninstalled traps 7976 | -9/Mines | Deemed a non-threat by the Exiles lab entrance 7976 | -9/Mines | Discovered new exit (range 5) 7986 | -9/Mines | Entered Exiles 7987 | -9/Exiles | Identified exit to Mines 8094 | -9/Exiles | Met 8R-AWN 8138 | -9/Exiles | Met EX-HEX 8229 | -9/Exiles | Met EX-DEC 8359 | -9/Exiles | Entered Mines 8983 | -8/Mines | Core integrity fell below 50% 9008 | -8/Mines | Discovered exit to Materials (range 4) 9094 | -8/Mines | Entered Materials 9094 | -8/Materials | Evolved 2 slots: Propulsion x1, Utility x1 9095 | -8/Materials | Identified exit to Storage 9096 | -8/Materials | Identified exit to Factory 9097 | -8/Materials | Loaded intel: 21 trap records 10116 | -8/Materials | Learned Storage garrison access intel 10158 | -8/Materials | Learned Factory recycling unit intel 10214 | -8/Materials | Learned Storage security intel 10648 | -8/Materials | Discovered exit to Factory (range 13) 11548 | -8/Materials | Learned location of Extension (-6) 11582 | -8/Materials | Repaired Arm. Treads 11662 | -8/Materials | Learned location of Lower Caves (-7) 11706 | -8/Materials | Learned Storage trap positions 12150 | -8/Materials | Entered Storage 12152 | -8/Storage | Identified exit to Recycling 12153 | -8/Storage | Loaded intel: 8 trap records 12156 | -8/Storage | Loaded intel: 1 garrison access location 12817 | -8/Storage | Repaired Arm. Treads 12863 | -8/Storage | Repaired Arm. Huge Wheel 12896 | -8/Storage | Repaired Rocket Launcher 12935 | -8/Storage | Repaired Arm. Treads 12974 | -8/Storage | Repaired Arm. Treads 13411 | -8/Storage | Repaired Shield Generator 13636 | -8/Storage | Used back door to open Recycling access 13661 | -8/Storage | Entered Recycling 13662 | -8/Recycling | Identified exit to Factory 14501 | -8/Recycling | Identified exit to Scraptown 14563 | -8/Recycling | Build established: Commander-Gunner 14611 | -8/Recycling | Learned Storage security intel 14630 | -8/Recycling | Scanned before Scraplab entrance 14649 | -8/Recycling | Learned Storage emergency access door positions 14650 | -8/Recycling | Entered Scraplab 14678 | -8/Recycling | Learned 4 Factory zone layouts 14697 | -8/Recycling | Learned 4 Lower Caves zone layouts 14708 | -8/Recycling | Learned 2 Storage zone layouts 14868 | -8/Recycling | Entered Scraptown 14868 | -8/Scraptown | Accompanied by 9 allies 14868 | -8/Scraptown | System corruption cleaned by C-Scrubber 15069 | -8/Scraptown | Heard Great Nut preacher, LISTEN AND RECITE! 15108 | -8/Scraptown | Visited SPCMW 15129 | -8/Scraptown | Visited Cyclists 15185 | -8/Scraptown | Visited UFD Registry 15185 | -8/Scraptown | Registered with UFD as "Shockgunner" 15212 | -8/Scraptown | Visited Symbiants 15225 | -8/Scraptown | Visited Spacefarers 15250 | -8/Scraptown | Entered Cyclist Reading Room 15356 | -8/Scraptown | Visited TADAMA 15372 | -8/Scraptown | Visited IN-MT5's Study 15428 | -8/Scraptown | Visited Cave Peace 15535 | -8/Scraptown | Visited Botcube Research 15555 | -8/Scraptown | Visited Curators Association 15587 | -8/Scraptown | Visited Science Guys 15664 | -8/Scraptown | Visited Science Testing Area 15683 | -8/Scraptown | Visited Scrap Suit Storage 15702 | -8/Scraptown | Visited Scrapoid Research Area 15716 | -8/Scraptown | Visited Modified Component R&D 15830 | -8/Scraptown | Visited Chapter 10 15850 | -8/Scraptown | Visited Cartography Club 15922 | -8/Scraptown | Learned location of Proximity Caves (-6) 15922 | -8/Scraptown | Learned 8 Materials zone layouts 15922 | -8/Scraptown | Learned 16 Materials zone layouts 15922 | -8/Scraptown | Learned 12 Factory zone layouts 15922 | -8/Scraptown | Learned 8 Research zone layouts 15922 | -8/Scraptown | Learned 16 Research zone layouts 15922 | -8/Scraptown | Learned 4 Access zone layouts 15922 | -8/Scraptown | Learned 8 Lower Caves zone layouts 15922 | -8/Scraptown | Learned 20 Lower Caves zone layouts 15922 | -8/Scraptown | Learned 8 Proximity Caves zone layouts 15922 | -8/Scraptown | Learned 12 Proximity Caves zone layouts 15922 | -8/Scraptown | Learned location of 2 exits from Factory 15922 | -8/Scraptown | Learned location of 2 exits from Lower Caves 15922 | -8/Scraptown | Learned location of 1 exit from Upper Caves 15944 | -8/Scraptown | Found Deep Structural Scanner 16265 | -8/Scraptown | Found Scrap Suit 16274 | -8/Scraptown | Found Scrap Suit 16396 | -8/Scraptown | Entered Factory 16396 | -6/Factory | Accompanied by 9 allies 16396 | -6/Factory | Evolved 4 slots: Power x1, Utility x3 16397 | -6/Factory | Identified exit to Factory 16397 | -6/Factory | Identified exit to Lower Caves 16397 | -6/Factory | Identified exit to Extension 16400 | -6/Factory | Loaded intel: 8 recycling unit locations 16560 | -6/Factory | Scrapoids reinforcements arrived? 16593 | -6/Factory | Lost 3 allies 16704 | -6/Factory | Build established: Commander-Skirmisher 16776 | -6/Factory | Repaired Arm. Treads 17280 | -6/Factory | Loaded intel: 8 recycling unit locations 17394 | -6/Factory | Lost 7 allies 17467 | -6/Factory | Entered Extension 17467 | -6/Extension | Accompanied by 1 ally 17631 | -6/Extension | Build established: Gunner 18218 | -6/Extension | Build established: Commander-Gunner 18267 | -6/Extension | Disrupted transfer network 18310 | -6/Extension | Rescued a captive Derelict 18312 | -6/Extension | Rescued a captive Derelict 18761 | -6/Extension | Spotted B-75 Beast 18784 | -6/Extension | Allies destroyed B-75 Beast 18788 | -6/Extension | Spotted B-75 Beast 18830 | -6/Extension | Lost 9 allies 18856 | -6/Extension | Destroyed B-75 Beast 18878 | -6/Extension | Lost 8 parts (2p2n1u3w) 19141 | -6/Extension | Lost 3 parts (1p1u1w) 19458 | -6/Extension | Core integrity fell below 50% 19625 | -6/Extension | Discovered new exit (range 6) 19644 | -6/Extension | Disrupted transfer network 19673 | -6/Extension | Build established: Scavenger-Gunner 19734 | -6/Extension | Lost 18 parts (1p4n5u8w) 20047 | -6/Extension | Build established: Scavenger-Mutant 20322 | -6/Extension | Rescued A7 20543 | -6/Extension | Identified exit to Cetus 20581 | -6/Extension | Entered Cetus 20581 | -6/Cetus | Accompanied by 10 allies (A7) 20586 | -6/Cetus | Acquired a Cetus Manufacturing Module code from A7 20602 | -6/Cetus | Spotted Cetus Guard 20602 | -6/Cetus | Spotted Cetus Guard 20605 | -6/Cetus | Spotted Cetus Guard 20607 | -6/Cetus | Spotted Cetus Guard 20607 | -6/Cetus | Allies destroyed Cetus Guard 20614 | -6/Cetus | Allies destroyed Cetus Guard 20616 | -6/Cetus | Allies destroyed Cetus Guard 20620 | -6/Cetus | Destroyed Cetus Guard 20649 | -6/Cetus | Lost 3 allies 20663 | -6/Cetus | Cetus Manufacturing Module disabled 20737 | -6/Cetus | Failed to start Cetus Manufacturing Module 20897 | -6/Cetus | Discovered new exit (range 15) 20934 | -6/Cetus | Spotted Cetus Guard 20934 | -6/Cetus | Spotted Cetus Guard 20944 | -6/Cetus | Allies destroyed Cetus Guard 20944 | -6/Cetus | Spotted Cetus Guard 20945 | -6/Cetus | Destroyed Cetus Guard 20951 | -6/Cetus | Allies destroyed Cetus Guard 20952 | -6/Cetus | Spotted Cetus Guard 20961 | -6/Cetus | Destroyed Cetus Guard 20979 | -6/Cetus | Discovered exit to Factory (range 16) 20985 | -6/Cetus | Lost 3 allies 20989 | -6/Cetus | Met Revision 17 21039 | -6/Cetus | Build established: Scavenger-Tank 21059 | -6/Cetus | Identified exit to Archives 21080 | -6/Cetus | Entered Archives 21080 | -6/Archives | Accompanied by 3 allies (A7) 21206 | -6/Archives | Discovered new exit (range 16) 21436 | -6/Archives | Discovered exit to Factory (range 16) 21757 | -6/Archives | Discovered new exit (range 16) 22442 | -6/Archives | Identified exit to Hub_04(d) 22459 | -6/Archives | Entered Hub_04(d) 22461 | -6/Hub_04(d) | Assembled infested ambush trap array 22477 | -6/Hub_04(d) | Core integrity fell below 20% 22972 | -6/Hub_04(d) | Spotted B-75 Beast 23020 | -6/Hub_04(d) | Destroyed B-75 Beast 23042 | -6/Hub_04(d) | Lost 4 parts (3u1w) 23662 | -6/Hub_04(d) | Destroyed by H-61 Shepherd with Heavy Assault Cannon Last Messages --------------- 23641_ U-05 Engineer builds a Wall. 23641_ Slug penetrates H-61 Shepherd. 23642_ K-01 Serf collects debris. 23644_ Adv. KE Penetrator destroyed. 23645_ U-05 Engineer builds a Wall. 23647_ K-01 Serf collects debris. 23648_ Penetrated by Slug. 23649_ U-05 Engineer builds a Wall. 23651_ Ended siege mode. 23651_ Penetrated by Slug. 23652_ K-01 Serf collects debris. 23653_ U-05 Engineer builds a Wall. 23655_ Slug penetrates Wall. 23655_ Centrium Heavy Treads destroyed. 23656_ K-01 Serf collects debris. 23658_ Slug penetrates Wall. 23659_ K-01 Serf collects debris. 23661_ Slug penetrates Wall. 23661_ Ovr. Huge Scrapsphere destroyed. 23661_ U-05 Engineer builds a Wall. Map ----- +----------------------------------------------------+ | #???????????????????????????????????# !! #???? | | #???????????????????????????????????# #???? | | #? ""???????????????????????????????# % #???? | | #?"""???????????????????????????????##########???? | | # "?????????????????????????????????????????????? | | # ??????????????????????????????????????????????? | | ???????????????????????????????????????????????? | | #????????????????????????????????????????????????? | | #????????????????????????????????????????????????? | | #+#?????#???????????????????????